fUST/lending_fUST_20250301
["ID","MTS","AMOUNT","RATE_DAILY","PERIOD"]
[354899668,1740803440693,-500.0,0.00039999,2]
[354899669,1740803440703,-500.31372051,0.00039999,2]
[354899670,1740803440712,-522.4143186,0.00039999,2]
[354899671,1740803440722,-500.0,0.00039999,2]
[354899672,1740803440731,-500.0,0.00039999,2]
[354899673,1740803440740,-912.01,0.00039999,2]
[354899674,1740803440749,-500.0,0.00039999,2]
[354899675,1740803440758,-500.0,0.00039999,2]
[354899676,1740803440767,-500.0,0.00039999,2]
[354899677,1740803440777,-500.0,0.00039999,14]
[354899678,1740803440786,-500.0,0.00039999,2]
[354899679,1740803440795,-500.0,0.00039999,2]
[354899680,1740803440804,-500.0,0.00039999,2]
[354899681,1740803440813,-500.0,0.00039999,2]
[354899682,1740803440823,-500.0,0.00039999,2]
[354899683,1740803440832,-1000.0,0.00039999,2]
[354899684,1740803440841,-500.0,0.00039999,2]
[354899685,1740803440850,-500.0,0.00039999,2]
[354899686,1740803440859,-1958.03,0.00039999,2]
[354899687,1740803440869,-500.0,0.00039999,2]
[354899688,1740803440879,-500.0,0.00039999,2]
[354899689,1740803440888,-500.0,0.00039999,2]
[354899690,1740803440898,-500.0,0.00039999,2]
[354899691,1740803440908,-2368.61,0.00039999,2]
[354899692,1740803440919,-500.0,0.00039999,2]
[354899693,1740803440929,-501.46367803,0.00039999,2]
[354899694,1740803440939,-500.0,0.00039999,2]
[354899695,1740803440949,-500.0,0.00039999,2]
[354899696,1740803440961,-500.0,0.00039999,2]
[354899697,1740803440970,-403.26599901,0.00039999,2]
[354899698,1740803440981,-500.0,0.00039999,2]
[354899699,1740803440991,-1371.21,0.00039999,2]
[354899700,1740803441001,-500.0,0.00039999,2]
[354899701,1740803441010,-500.0,0.00039999,2]
[354899702,1740803441019,-500.0,0.00039999,2]
[354899703,1740803441029,-500.0,0.00039999,2]
[354899704,1740803441038,-500.0,0.00039999,2]
[354899705,1740803441047,-500.0,0.00039999,2]
[354899706,1740803441056,-500.0,0.00039999,2]
[354899707,1740803441066,-500.0,0.00039999,2]
[354899708,1740803441075,-500.0,0.00039999,2]
[354899709,1740803441085,-500.0,0.00039999,2]
[354899710,1740803441094,-503.83221514,0.00039999,2]
[354899711,1740803441103,-500.0,0.00039999,2]
[354899712,1740803441113,-200.89045231,0.00039999,2]
[354899713,1740803441122,-500.0,0.00039999,2]
[354899714,1740803441132,-500.0,0.00039999,2]
[354899715,1740803441141,-500.0,0.00039999,2]
[354899716,1740803441150,-500.0,0.00039999,2]
[354899717,1740803441160,-500.0,0.00039999,2]
[354899718,1740803441169,-500.0,0.00039999,2]
[354899719,1740803441179,-1052.58,0.00039999,2]
[354899720,1740803441191,-500.0,0.00039999,2]
[354899721,1740803441200,-500.0,0.00039999,2]
[354899722,1740803441211,-356.94056985,0.00039999,2]
[354899723,1740803441222,-500.0,0.00039999,2]
[354899724,1740803441233,-500.0,0.00039999,2]
[354899725,1740803441243,-500.0,0.00039999,2]
[354899726,1740803441253,-1045.64,0.00039999,2]
[354899727,1740803441263,-500.0,0.00039999,2]
[354899728,1740803441274,-1045.64,0.00039999,2]
[354899729,1740803441283,-1045.64,0.00039999,2]
[354899730,1740803441293,-1045.64,0.00039999,2]
[354899731,1740803441303,-1045.64,0.00039999,2]
[354899732,1740803441313,-1045.64,0.00039999,2]
[354899733,1740803441323,-174.53736287,0.00039999,2]
[354899734,1740803441333,-2032.81,0.00039999,2]
[354899735,1740803441343,-500.0,0.00039999,2]
[354899736,1740803441354,-500.0,0.00039999,2]
[354899737,1740803441363,-500.0,0.00039999,2]
[354899738,1740803441372,-500.0,0.00039999,2]
[354899739,1740803441384,-500.0,0.00039999,2]
[354899740,1740803441393,-500.0,0.00039999,2]
[354899741,1740803441403,-919.37,0.00039999,2]
[354899742,1740803441412,-500.0,0.00039999,2]
[354899743,1740803441423,-500.0,0.00039999,2]
[354899744,1740803441433,-500.0,0.00039999,2]
[354899745,1740803441442,-500.0,0.00039999,2]
[354899746,1740803441452,-500.0,0.00039999,2]
[354899747,1740803441461,-500.0,0.00039999,2]
[354899748,1740803441471,-500.0,0.00039999,2]
[354899749,1740803441480,-719.72,0.00039999,2]
[354899750,1740803441490,-500.0,0.00039999,2]
[354899751,1740803441500,-500.0,0.00039999,2]
[354899752,1740803441510,-500.0,0.00039999,2]
[354899753,1740803441520,-500.0,0.00039999,2]
[354899754,1740803441530,-1007.3,0.00039999,2]
[354899755,1740803441539,-500.0,0.00039999,2]
[354899756,1740803441549,-500.0,0.00039999,2]
[354899757,1740803441558,-500.0,0.00039999,2]
[354899758,1740803441567,-511.6614966,0.00039999,2]
[354899759,1740803441577,-500.0,0.00039999,2]
[354899760,1740803441586,-500.0,0.00039999,2]
[354899761,1740803441595,-500.0,0.00039999,2]
[354899762,1740803441605,-500.0,0.00039999,2]
[354899763,1740803441614,-500.0,0.00039999,2]
[354899764,1740803441623,-267.40314318,0.00039999,2]
[354899765,1740803441632,-727.63,0.00039999,2]
[354899766,1740803441642,-804.31,0.00039999,2]
[354899767,1740803441651,-500.0,0.00039999,2]
[354899768,1740803441660,-500.0,0.00039999,2]
[354899769,1740803441670,-340.55587189,0.00039999,2]
[354899770,1740803441679,-510.62667176,0.00039999,2]
[354899771,1740803441689,-500.0,0.00039999,2]
[354899772,1740803441699,-500.0,0.00039999,2]
[354899773,1740803441708,-500.0,0.00039999,2]
[354899774,1740803441718,-500.0,0.00039999,2]
[354899775,1740803441728,-500.0,0.00039999,2]
[354899776,1740803441737,-787.09,0.00039999,2]
[354899777,1740803441748,-500.0,0.00039999,2]
[354899778,1740803441757,-1454.97,0.00039999,2]
[354899779,1740803441766,-3506.83,0.00039999,2]
[354899780,1740803441776,-500.0,0.00039999,2]
[354899781,1740803441785,-500.0,0.00039999,2]
[354899782,1740803441794,-2172.42,0.00039999,2]
[354899783,1740803441804,-500.0,0.00039999,2]
[354899784,1740803441815,-500.0,0.00039999,2]
[354899785,1740803441825,-609.77,0.00039999,2]
[354899786,1740803441836,-500.0,0.00039999,2]
[354899787,1740803441847,-504.0863948,0.00039999,2]
[354899788,1740803441856,-500.0,0.00039999,2]
[354899789,1740803441867,-500.0,0.00039999,2]
[354899790,1740803441876,-500.0,0.00039999,2]
[354899791,1740803441887,-500.0,0.00039999,2]
[354899792,1740803441897,-522.21,0.00039999,2]
[354899793,1740803441908,-500.0,0.00039999,2]
[354899794,1740803441918,-500.0,0.00039999,2]
[354899795,1740803441928,-500.0,0.00039999,2]
[354899796,1740803441938,-816.9,0.00039999,2]
[354899797,1740803441948,-500.0,0.00039999,2]
[354899798,1740803441960,-500.0,0.00039999,2]
[354899799,1740803441970,-500.0,0.00039999,2]
[354899800,1740803441980,-552.87,0.00039999,2]
[354899801,1740803441989,-1508.91,0.00039999,2]
[354899802,1740803441999,-500.0,0.00039999,2]
[354899803,1740803442008,-500.0,0.00039999,2]
[354899804,1740803442018,-500.0,0.00039999,2]
[354899805,1740803442028,-500.0,0.00039999,2]
[354899806,1740803442038,-500.0,0.00039999,2]
[354899807,1740803442047,-500.0,0.00039999,2]
[354899808,1740803442057,-500.0,0.00039999,2]
[354899809,1740803442067,-216.31212052,0.00039999,2]
[354899810,1740803442076,-500.0,0.00039999,2]
[354899811,1740803442085,-500.0,0.00039999,2]
[354899812,1740803442095,-500.0,0.00039999,2]
[354899813,1740803442104,-500.0,0.00039999,2]
[354899814,1740803442114,-500.0,0.00039999,2]
[354899815,1740803442125,-500.0,0.00039999,2]
[354899816,1740803442135,-500.0,0.00039999,2]
[354899817,1740803442144,-1506.29,0.00039999,2]
[354899818,1740803442154,-579.37,0.00039999,2]
[354899819,1740803442163,-500.0,0.00039999,2]
[354899820,1740803442172,-500.0,0.00039999,2]
[354899821,1740803442182,-500.0,0.00039999,2]
[354899822,1740803442191,-527.27993584,0.00039999,2]
[354899823,1740803442200,-500.0,0.00039999,2]
[354899824,1740803442210,-500.0,0.00039999,2]
[354899825,1740803442219,-500.0,0.00039999,2]
[354899826,1740803442229,-500.0,0.00039999,2]
[354899827,1740803442238,-1874.73,0.00039999,2]
[354899828,1740803442247,-500.0,0.00039999,2]
[354899829,1740803442256,-502.59422479,0.00039999,2]
[354899830,1740803442265,-632.33112071,0.00039999,2]
[354899831,1740803442274,-510.19824017,0.00039999,2]
[354899832,1740803442284,-500.0,0.00039999,2]
[354899833,1740803442293,-500.0,0.00039999,2]
[354899834,1740803442303,-500.0,0.00039999,2]
[354899835,1740803442314,-500.0,0.00039999,2]
[354899836,1740803442323,-500.0,0.00039999,2]
[354899837,1740803442332,-500.0,0.00039999,2]
[354899838,1740803442343,-500.0,0.00039999,2]
[354899839,1740803442352,-513.75,0.00039999,2]
[354899840,1740803442361,-500.0,0.00039999,2]
[354899841,1740803442371,-823.07,0.00039999,2]
[354899842,1740803442380,-573.77727748,0.00039999,2]
[354899844,1740803442542,-407.2,0.0004,7]
[354899845,1740803442553,-6260.51,0.0004,30]
[354899846,1740803442562,-2000.0,0.0004,120]
[354899847,1740803442572,-2000.0,0.0004,120]
[354899848,1740803442582,-2000.0,0.0004,120]
[354899849,1740803442591,-2000.0,0.0004,120]
[354899850,1740803442600,-2000.0,0.0004,120]
[354899851,1740803442610,-1000.01,0.0004,120]
[354899852,1740803442620,-1284.66,0.0004,30]
[354899853,1740803442629,-125154.11,0.0004,30]
[354899854,1740803442639,-6199.61,0.0004,30]
[354899855,1740803442648,-151.0,0.0004,13]
[354899857,1740803442658,-19624.61182001,0.0004,120]
[354899859,1740803442667,-151.0,0.000401,14]
[354899861,1740803442676,-151.0,0.000401,20]
[354899862,1740803442686,-355.7160855,0.00040137,30]
[354899863,1740803442695,-355.7160855,0.00040137,30]
[354899864,1740803442705,-355.7160855,0.00040137,30]
[354899865,1740803442714,-355.7160855,0.00040137,30]
[354899866,1740803442724,-355.7160855,0.00040137,30]
[354899867,1740803442733,-355.7160855,0.00040137,30]
[354899868,1740803442743,-355.7160855,0.00040137,30]
[354899869,1740803442752,-711.432171,0.00040137,30]
[354899871,1740803442762,-355.7160855,0.00040137,30]
[354899873,1740803442771,-4229.2,0.00040171,2]
[354899875,1740803442780,-1687.34,0.00040171,5]
[354899877,1740803442790,-2152.84,0.00040171,2]
[354899880,1740803442799,-250.16499472,0.00040171,2]
[354899881,1740803442809,-1534.89,0.00040171,2]
[354899885,1740803442818,-1558.77,0.00040171,2]
[354899887,1740803442827,-500.0,0.00040171,2]
[354899889,1740803442836,-151.0,0.000402,10]
[354899892,1740803442845,-151.0,0.000402,14]
[354899895,1740803442855,-151.0,0.000402,18]
[354899897,1740803442865,-151.0,0.000402,10]
[354899899,1740803442874,-151.0,0.000402,18]
[354899901,1740803442883,-151.0,0.000402,13]
[354899903,1740803442892,-151.0,0.000402,16]
[354899906,1740803442902,-151.0,0.000402,20]
[354899908,1740803442911,-151.0,0.000402,11]
[354899910,1740803442920,-151.0,0.00040248,2]
[354899913,1740803442929,-500.0,0.00040248,2]
[354899915,1740803442938,-5205.54244575,0.00040257,120]
[354899917,1740803442947,-500.0,0.00040262,5]
[354899919,1740803442956,-500.0,0.00040262,5]
[354899921,1740803442965,-500.0,0.00040271,2]
[354899923,1740803442975,-850.63,0.00040271,2]
[354899924,1740803442984,-500.0,0.00040271,2]
[354899926,1740803442993,-548.28,0.00040271,2]
[354899928,1740803443003,-720.36,0.00040271,2]
[354899929,1740803443012,-871.86,0.00040271,2]
[354899930,1740803443021,-1325.53,0.00040271,2]
[354899931,1740803443030,-500.0,0.00040271,2]
[354899932,1740803443039,-500.0,0.00040271,2]
[354899934,1740803443048,-500.0,0.00040271,2]
[354899936,1740803443057,-500.0,0.00040271,2]
[354899937,1740803443066,-500.0,0.00040271,2]
[354899938,1740803443075,-678.73,0.00040271,2]
[354899939,1740803443084,-500.0,0.00040271,2]
[354899940,1740803443093,-2563.23,0.00040271,2]
[354899941,1740803443103,-2728.93,0.00040271,2]
[354899942,1740803443112,-584.61,0.00040271,2]
[354899943,1740803443123,-500.0,0.00040271,2]
[354899944,1740803443132,-500.0,0.00040271,2]
[354899945,1740803443141,-500.0,0.00040271,2]
[354899946,1740803443151,-3114.31,0.00040271,2]
[354899947,1740803443160,-502.03,0.00040271,2]
[354899948,1740803443170,-643.0,0.00040271,2]
[354899949,1740803443179,-1859.8,0.00040271,2]
[354899950,1740803443188,-1073.59,0.00040271,2]
[354899951,1740803443198,-500.0,0.00040271,2]
[354899952,1740803443207,-500.0,0.00040271,2]
[354899953,1740803443216,-650.09,0.00040271,2]
[354899954,1740803443225,-585.13,0.00040271,2]
[354899955,1740803443235,-500.0,0.00040271,2]
[354899956,1740803443244,-2135.35,0.00040271,2]
[354899957,1740803443253,-500.0,0.00040271,2]
[354899958,1740803443263,-502.75208974,0.00040271,2]
[354899959,1740803443272,-540.61,0.00040271,2]
[354899960,1740803443281,-6533.75,0.00040271,2]
[354899961,1740803443290,-1944.15,0.00040271,2]
[354899962,1740803443299,-510.97,0.00040271,2]
[354899963,1740803443312,-2457.94,0.00040271,2]
[354899964,1740803443321,-500.0,0.00040271,2]
[354899965,1740803443331,-1143.0,0.00040271,2]
[354899966,1740803443340,-11697.6,0.00040271,2]
[354899967,1740803443350,-502.74423405,0.00040271,2]
[354899968,1740803443359,-500.0,0.00040271,2]
[354899969,1740803443368,-18691.78,0.00040271,2]
[354899970,1740803443377,-839.02,0.00040271,2]
[354899971,1740803443387,-500.0,0.00040271,2]
[354899972,1740803443397,-500.0,0.00040271,2]
[354899973,1740803443406,-3559.27,0.00040271,2]
[354899974,1740803443415,-500.0,0.00040271,2]
[354899975,1740803443424,-2285.54,0.00040271,2]
[354899976,1740803443433,-6209.93,0.00040271,2]
[354899977,1740803443443,-500.0,0.00040271,2]
[354899978,1740803443452,-1172.59,0.00040271,2]
[354899979,1740803443461,-1176.44,0.00040271,2]
[354899980,1740803443470,-3470.69,0.00040271,2]
[354899981,1740803443479,-500.0,0.00040271,2]
[354899982,1740803443489,-1131.53,0.00040271,2]
[354899983,1740803443499,-500.0,0.00040271,2]
[354899984,1740803443509,-1772.77,0.00040271,2]
[354899985,1740803443519,-500.0,0.00040271,2]
[354899986,1740803443529,-1017.43,0.00040271,2]
[354899987,1740803443539,-2165.05,0.00040271,2]
[354899988,1740803443549,-1292.63,0.00040271,2]
[354899989,1740803443560,-949.19,0.00040271,2]
[354899990,1740803443571,-500.0,0.00040271,2]
[354899991,1740803443582,-500.0,0.00040271,2]
[354899992,1740803443593,-2365.8,0.00040271,2]
[354899993,1740803443604,-669.5,0.00040271,2]
[354899994,1740803443615,-609.25,0.00040271,2]
[354899995,1740803443633,-1699.91,0.00040271,2]
[354899996,1740803443644,-434.02940829,0.00040271,2]
[354899997,1740803443655,-500.0,0.00040271,2]
[354899998,1740803443664,-500.0,0.00040271,2]
[354899999,1740803443676,-610.33,0.00040271,2]
[354900000,1740803443686,-581.76,0.00040271,2]
[354900001,1740803443696,-1794.47,0.00040271,2]
[354900002,1740803443706,-500.0,0.00040271,2]
[354900003,1740803443716,-686.98,0.00040271,2]
[354900004,1740803443725,-500.0,0.00040271,2]
[354900005,1740803443735,-500.0,0.00040271,2]
[354900006,1740803443744,-1867.18,0.00040271,2]
[354900007,1740803443754,-500.0,0.00040271,2]
[354900008,1740803443763,-723.9,0.00040271,2]
[354900009,1740803443773,-41264.73,0.00040271,2]
[354900010,1740803443783,-500.0,0.00040271,2]
[354900011,1740803443792,-772.66,0.00040271,2]
[354900012,1740803443801,-231.384318,0.00040271,14]
[354900013,1740803443811,-909.69,0.00040271,2]
[354900014,1740803443822,-4806.0,0.00040271,2]
[354900015,1740803443831,-231.384318,0.00040271,14]
[354900016,1740803443841,-500.0,0.00040271,2]
[354900017,1740803443850,-1782.32,0.00040271,2]
[354900018,1740803443860,-1945.53,0.00040271,2]
[354900019,1740803443873,-500.0,0.00040271,2]
[354900020,1740803443882,-500.0,0.00040271,2]
[354900021,1740803443892,-2683.39,0.00040271,2]
[354900022,1740803443902,-1062.1,0.00040271,2]
[354900023,1740803443912,-2632.65,0.00040271,2]
[354900024,1740803443922,-9364.82,0.00040271,2]
[354900025,1740803443932,-3326.42,0.00040271,2]
[354900026,1740803443942,-821.78,0.00040271,2]
[354900027,1740803443951,-2646.79,0.00040271,2]
[354900028,1740803443962,-641.42,0.00040271,2]
[354900029,1740803443971,-3352.65,0.00040271,2]
[354900030,1740803443981,-325.02174419,0.00040271,2]
[354900031,1740803443991,-13507.68,0.00040271,2]
[354900032,1740803444001,-793.88,0.00040271,2]
[354900033,1740803444010,-1240.41,0.00040271,2]
[354900034,1740803444019,-1473.52,0.00040271,2]
[354900035,1740803444029,-1898.48,0.00040271,2]
[354900036,1740803444038,-685.23,0.00040271,2]
[354900037,1740803444048,-7916.33,0.00040271,2]
[354900038,1740803444058,-500.0,0.00040271,2]
[354900039,1740803444067,-500.0,0.00040271,2]
[354900040,1740803444076,-500.0,0.00040271,2]
[354900041,1740803444086,-639.69965995,0.00040271,2]
[354900042,1740803444095,-667.16,0.00040271,2]
[354900043,1740803444104,-432.81210842,0.00040271,2]
[354900044,1740803444114,-500.0,0.00040271,2]
[354900045,1740803444128,-500.0,0.00040271,2]
[354900046,1740803444138,-5557.91,0.00040271,2]
[354900047,1740803444148,-500.0,0.00040272,2]
[354900048,1740803444157,-500.0,0.00040272,2]
[354900049,1740803444166,-500.0,0.00040272,2]
[354900050,1740803444175,-500.0,0.00040272,2]
[354900051,1740803444185,-500.0,0.00040272,2]
[354900052,1740803444194,-509.14,0.00040272,2]
[354900053,1740803444204,-500.0,0.00040272,2]
[354900054,1740803444213,-500.0,0.00040272,2]
[354900055,1740803444223,-500.0,0.00040272,2]
[354900056,1740803444232,-500.0,0.00040272,2]
[354900057,1740803444242,-500.0,0.00040272,2]
[354900058,1740803444251,-1926.06,0.00040272,2]
[354900059,1740803444261,-865.2,0.00040272,2]
[354900060,1740803444270,-500.0,0.00040272,2]
[354900061,1740803444279,-500.0,0.00040272,2]
[354900062,1740803444288,-500.0,0.00040272,2]
[354900063,1740803444298,-500.0,0.00040272,2]
[354900064,1740803444309,-500.0,0.00040272,2]
[354900065,1740803444318,-500.0,0.00040272,2]
[354900066,1740803444327,-500.0,0.00040272,2]
[354900067,1740803444337,-530.16,0.00040272,2]
[354900068,1740803444348,-500.0,0.00040272,2]
[354900069,1740803444358,-500.0,0.00040272,2]
[354900070,1740803444369,-500.0,0.00040272,2]
[354900071,1740803444379,-500.0,0.00040272,2]
[354900072,1740803444393,-500.0,0.00040272,2]
[354900073,1740803444402,-609.43,0.00040272,2]
[354900074,1740803444411,-500.0,0.00040272,2]
[354900075,1740803444420,-500.0,0.00040272,2]
[354900076,1740803444429,-500.0,0.00040272,2]
[354900077,1740803444438,-500.0,0.00040272,2]
[354900078,1740803444448,-500.0,0.00040272,2]
[354900079,1740803444457,-714.81,0.00040272,2]
[354900080,1740803444466,-500.0,0.00040272,2]
[354900081,1740803444475,-500.0,0.00040272,2]
[354900082,1740803444484,-500.0,0.00040272,2]
[354900083,1740803444493,-500.0,0.00040272,2]
[354900084,1740803444503,-500.0,0.00040272,2]
[354900085,1740803444513,-1034.59,0.00040272,2]
[354900086,1740803444523,-1016.26,0.00040272,2]
[354900087,1740803444532,-500.0,0.00040272,2]
[354900088,1740803444541,-500.0,0.00040272,2]
[354900089,1740803444551,-500.0,0.00040272,2]
[354900090,1740803444560,-378.60703363,0.00040272,2]
[354900091,1740803444570,-500.0,0.00040272,2]
[354900092,1740803444579,-500.0,0.00040272,2]
[354900093,1740803444588,-500.0,0.00040272,2]
[354900094,1740803444598,-759.87,0.00040272,2]
[354900095,1740803444607,-500.0,0.00040272,2]
[354900096,1740803444618,-500.0,0.00040272,2]
[354900097,1740803444628,-500.0,0.00040272,2]
[354900098,1740803444637,-500.0,0.00040272,2]
[354900099,1740803444646,-502.12049362,0.00040272,2]
[354900100,1740803444655,-500.0,0.00040272,2]
[354900101,1740803444666,-647.46,0.00040272,2]
[354900102,1740803444675,-500.0,0.00040272,2]
[354900103,1740803444685,-500.0,0.00040272,2]
[354900104,1740803444694,-500.0,0.00040272,2]
[354900105,1740803444704,-500.0,0.00040272,2]
[354900106,1740803444713,-626.46,0.00040272,2]
[354900107,1740803444722,-500.0,0.00040272,2]
[354900108,1740803444731,-500.0,0.00040272,2]
[354900109,1740803444740,-500.0,0.00040272,2]
[354900110,1740803444750,-500.0,0.00040272,2]
[354900111,1740803444759,-333.36093072,0.00040272,2]
[354900112,1740803444768,-500.0,0.00040272,2]
[354900113,1740803444778,-200.0,0.00040272,2]
[354900114,1740803444787,-500.0,0.00040272,2]
[354900115,1740803444796,-500.0,0.00040272,2]
[354900116,1740803444806,-500.0,0.00040272,2]
[354900117,1740803444815,-500.0,0.00040272,2]
[354900118,1740803444824,-589.59,0.00040272,2]
[354900119,1740803444833,-500.0,0.00040272,2]
[354900120,1740803444843,-503.18150938,0.00040272,2]
[354900121,1740803444853,-500.0,0.00040272,2]
[354900122,1740803444863,-500.0,0.00040272,2]
[354900123,1740803444874,-500.0,0.00040272,2]
[354900124,1740803444883,-500.0,0.00040272,2]
[354900125,1740803444893,-500.0,0.00040272,2]
[354900126,1740803444903,-1306.99,0.00040272,2]
[354900127,1740803444912,-500.0,0.00040272,2]
[354900128,1740803444921,-500.0,0.00040272,2]
[354900129,1740803444930,-683.51,0.00040272,2]
[354900130,1740803444940,-500.0,0.00040272,2]
[354900131,1740803444949,-500.0,0.00040272,2]
[354900132,1740803444959,-500.0,0.00040272,2]
[354900133,1740803444968,-500.0,0.00040272,2]
[354900134,1740803444978,-500.0,0.00040272,2]
[354900135,1740803444987,-500.0,0.00040272,2]
[354900136,1740803444997,-500.0,0.00040272,2]
[354900137,1740803445006,-779.58,0.00040272,2]
[354900138,1740803445015,-500.0,0.00040272,2]
[354900139,1740803445024,-500.0,0.00040272,2]
[354900140,1740803445033,-500.0,0.00040272,2]
[354900141,1740803445042,-500.0,0.00040272,2]
[354900142,1740803445051,-500.0,0.00040272,2]
[354900143,1740803445061,-500.0,0.00040272,2]
[354900144,1740803445070,-500.0,0.00040272,2]
[354900145,1740803445079,-738.36,0.00040272,2]
[354900146,1740803445089,-500.0,0.00040272,2]
[354900147,1740803445099,-500.0,0.00040272,2]
[354900148,1740803445108,-500.0,0.00040272,2]
[354900149,1740803445118,-501.33529888,0.00040272,2]
[354900150,1740803445128,-745.93,0.00040272,2]
[354900151,1740803445138,-500.0,0.00040272,2]
[354900152,1740803445147,-994.46,0.00040272,2]
[354900153,1740803445156,-500.0,0.00040272,2]
[354900154,1740803445166,-500.0,0.00040272,2]
[354900155,1740803445175,-624.04,0.00040272,2]
[354900156,1740803445185,-500.0,0.00040272,2]
[354900157,1740803445196,-501.23653082,0.00040272,2]
[354900158,1740803445205,-985.43,0.00040272,2]
[354900159,1740803445215,-500.0,0.00040272,2]
[354900160,1740803445224,-500.0,0.00040272,2]
[354900161,1740803445233,-500.0,0.00040272,2]
[354900162,1740803445242,-502.71714891,0.00040272,120]
[354900163,1740803445252,-1177.84,0.00040272,2]
[354900164,1740803445261,-500.0,0.00040272,2]
[354900165,1740803445410,-500.0,0.00040272,2]
[354900166,1740803445421,-2010.16,0.00040272,2]
[354900167,1740803445430,-505.98346316,0.00040272,2]
[354900168,1740803445439,-1861.99,0.00040272,2]
[354900169,1740803445449,-500.0,0.00040272,2]
[354900170,1740803445459,-500.0,0.00040272,2]
[354900171,1740803445468,-500.0,0.00040272,2]
[354900172,1740803445478,-1436.05,0.00040272,2]
[354900173,1740803445487,-646.99,0.00040272,2]
[354900174,1740803445496,-500.0,0.00040272,2]
[354900175,1740803445506,-500.0,0.00040272,2]
[354900176,1740803445515,-579.07,0.00040272,2]
[354900177,1740803445525,-500.0,0.00040272,2]
[354900178,1740803445534,-1339.27,0.00040272,2]
[354900179,1740803445544,-677.4,0.00040272,2]
[354900180,1740803445553,-500.0,0.00040272,2]
[354900181,1740803445562,-500.0,0.00040272,2]
[354900182,1740803445572,-500.0,0.00040272,2]
[354900183,1740803445582,-500.0,0.00040272,2]
[354900184,1740803445592,-807.03,0.00040272,2]
[354900186,1740803445602,-500.0,0.00040272,2]
[354900188,1740803445612,-1844.65,0.00040272,2]
[354900190,1740803445622,-902.45,0.00040272,2]
[354900192,1740803445631,-500.0,0.00040272,2]
[354900194,1740803445641,-500.0,0.00040272,2]
[354900195,1740803445650,-500.0,0.00040272,2]
[354900196,1740803445659,-1096.51,0.00040272,2]
[354900197,1740803445669,-500.0,0.00040272,2]
[354900198,1740803445678,-1817.75,0.00040272,2]
[354900199,1740803445688,-1973.46,0.00040272,2]
[354900200,1740803445697,-500.0,0.00040272,2]
[354900201,1740803445707,-500.0,0.00040272,2]
[354900203,1740803445716,-1052.03,0.00040272,2]
[354900204,1740803445725,-1508.76,0.00040272,2]
[354900205,1740803445734,-500.0,0.00040272,2]
[354900206,1740803445743,-500.0,0.00040272,2]
[354900207,1740803445753,-500.0,0.00040272,2]
[354900208,1740803445762,-500.0,0.00040272,2]
[354900209,1740803445772,-1296.68,0.00040272,2]
[354900210,1740803445781,-500.0,0.00040272,2]
[354900211,1740803445791,-500.0,0.00040272,2]